fUST/lending_fUST_20250601
["ID","MTS","AMOUNT","RATE_DAILY","PERIOD"]
[363535852,1748755847717,-430.0,0.00017808,2]
[363535854,1748755847727,-430.0,0.00017808,2]
[363535856,1748755847736,-430.0,0.00017808,2]
[363535858,1748755847746,-430.0,0.00017808,2]
[363535860,1748755847755,-430.0,0.00017808,2]
[363535862,1748755847764,-430.0,0.00017808,2]
[363535864,1748755847774,-513.79,0.00017808,2]
[363535865,1748755847783,-618.38,0.00017808,2]
[363535867,1748755847793,-808.25,0.00017808,2]
[363535869,1748755847802,-430.0,0.00017808,2]
[363535871,1748755847812,-430.0,0.00017808,2]
[363535873,1748755847822,-430.0,0.00017808,2]
[363535875,1748755847833,-430.0,0.00017808,2]
[363535878,1748755847842,-430.0,0.00017808,2]
[363535879,1748755847852,-509.40951247,0.00017808,2]
[363535881,1748755847862,-1548.34,0.00017808,2]
[363535883,1748755847872,-430.0,0.00017808,2]
[363535885,1748755847882,-151.0,0.00017808,2]
[363535887,1748755847891,-430.0,0.00017808,2]
[363535889,1748755847901,-603.51,0.00017808,2]
[363535891,1748755847911,-430.0,0.00017808,2]
[363535893,1748755847920,-430.0,0.00017808,2]
[363535895,1748755847929,-430.0,0.00017808,2]
[363535897,1748755847938,-430.0,0.00017808,2]
[363535899,1748755847948,-430.0,0.00017808,2]
[363535901,1748755847957,-430.0,0.00017808,2]
[363535903,1748755847967,-430.0,0.00017808,2]
[363535905,1748755847976,-430.0,0.00017808,2]
[363535907,1748755847985,-430.0,0.00017808,2]
[363535909,1748755847995,-632.5,0.00017808,2]
[363535911,1748755848005,-430.0,0.00017808,2]
[363535913,1748755848015,-430.0,0.00017808,2]
[363535915,1748755848024,-430.0,0.00017808,2]
[363535917,1748755848035,-430.0,0.00017808,2]
[363535919,1748755848045,-430.0,0.00017808,2]
[363535921,1748755848054,-430.0,0.00017808,2]
[363535923,1748755848064,-430.0,0.00017808,2]
[363535925,1748755848074,-791.86,0.00017808,2]
[363535927,1748755848083,-430.0,0.00017808,2]
[363535928,1748755848092,-430.0,0.00017808,2]
[363535930,1748755848102,-1318.97,0.00017808,2]
[363535932,1748755848113,-462.49,0.00017808,2]
[363535934,1748755848123,-500.01,0.00017808,2]
[363535936,1748755848133,-602.74,0.00017808,2]
[363535938,1748755848143,-430.0,0.00017808,2]
[363535940,1748755848152,-430.0,0.00017808,2]
[363535942,1748755848162,-430.0,0.00017808,2]
[363535944,1748755848172,-1752.54,0.00017808,2]
[363535946,1748755848182,-430.0,0.00017808,2]
[363535948,1748755848192,-1048.15,0.00017808,2]
[363535950,1748755848202,-717.96,0.00017808,2]
[363535952,1748755848212,-430.0,0.00017808,2]
[363535954,1748755848222,-430.0,0.00017808,2]
[363535956,1748755848233,-430.0,0.00017808,2]
[363535958,1748755848243,-430.0,0.00017808,2]
[363535960,1748755848253,-1719.17,0.00017808,2]
[363535962,1748755848263,-1774.98813228,0.000179,2]
[363535964,1748755848273,-420.0,0.00017941,2]
[363535966,1748755848284,-240.0,0.00017948,2]
[363535968,1748755848294,-420.0,0.00017948,2]
[363535970,1748755848304,-420.0,0.00017948,2]
[363535972,1748755848314,-420.0,0.00017948,2]
[363535974,1748755848324,-3271.42974267,0.00018,2]
[363535976,1748755848337,-10059.74233766,0.00018,2]
[363535978,1748755848347,-1680.0,0.00018037,2]
[363535980,1748755848357,-430.0,0.00018082,2]
[363535982,1748755848367,-430.0,0.00018082,2]
[363535984,1748755848377,-430.0,0.00018082,2]
[363535986,1748755848388,-430.0,0.00018082,2]
[363535988,1748755848399,-558.61,0.00018082,2]
[363535990,1748755848410,-430.0,0.00018082,2]
[363535992,1748755848420,-430.0,0.00018082,2]
[363535994,1748755848430,-151.0,0.00018082,2]
[363535996,1748755848440,-151.0,0.00018082,2]
[363535998,1748755848450,-430.0,0.00018082,2]
[363536000,1748755848461,-430.0,0.00018082,2]
[363536002,1748755848471,-562.82168232,0.00018082,2]
[363536004,1748755848481,-430.0,0.00018082,2]
[363536006,1748755848491,-430.0,0.00018082,2]
[363536008,1748755848502,-513.79,0.00018082,2]
[363536010,1748755848512,-618.38,0.00018082,2]
[363536012,1748755848522,-808.25,0.00018082,2]
[363536014,1748755848533,-430.0,0.00018082,2]
[363536016,1748755848542,-430.0,0.00018082,2]
[363536018,1748755848551,-430.0,0.00018082,2]
[363536020,1748755848561,-430.0,0.00018082,2]
[363536022,1748755848570,-430.0,0.00018082,2]
[363536023,1748755848580,-1548.34,0.00018082,2]
[363536025,1748755848590,-430.0,0.00018082,2]
[363536028,1748755848600,-430.0,0.00018082,2]
[363536029,1748755848610,-603.51,0.00018082,2]
[363536032,1748755848620,-430.0,0.00018082,2]
[363536034,1748755848630,-430.0,0.00018082,2]
[363536035,1748755848639,-430.0,0.00018082,2]
[363536037,1748755848650,-430.0,0.00018082,2]
[363536039,1748755848660,-268.95312031,0.00018082,2]
[363536041,1748755848671,-151.0,0.00018082,2]
[363536043,1748755848681,-151.0,0.00018082,2]
[363536045,1748755848690,-430.0,0.00018082,2]
[363536047,1748755848700,-430.0,0.00018082,2]
[363536049,1748755848710,-430.0,0.00018082,2]
[363536051,1748755848719,-430.0,0.00018082,2]
[363536054,1748755848729,-632.5,0.00018082,2]
[363536055,1748755848739,-430.0,0.00018082,2]
[363536057,1748755848748,-430.0,0.00018082,2]
[363536059,1748755848758,-151.0,0.00018082,2]
[363536061,1748755848768,-430.0,0.00018082,2]
[363536064,1748755848783,-430.0,0.00018082,2]
[363536066,1748755848793,-430.0,0.00018082,2]
[363536068,1748755848802,-151.0,0.00018082,2]
[363536070,1748755848811,-348.69,0.00018082,2]
[363536071,1748755848821,-791.86,0.00018082,2]
[363536073,1748755848831,-430.0,0.00018082,2]
[363536075,1748755848840,-430.0,0.00018082,2]
[363536077,1748755848850,-1318.97,0.00018082,2]
[363536079,1748755848859,-462.49,0.00018082,2]
[363536081,1748755848870,-602.74,0.00018082,2]
[363536083,1748755848879,-430.0,0.00018082,2]
[363536085,1748755848889,-430.0,0.00018082,2]
[363536087,1748755848898,-430.0,0.00018082,2]
[363536089,1748755848908,-1752.54,0.00018082,2]
[363536091,1748755848918,-430.0,0.00018082,2]
[363536093,1748755848927,-1048.15,0.00018082,2]
[363536095,1748755848937,-717.96,0.00018082,2]
[363536097,1748755848947,-430.0,0.00018082,2]
[363536099,1748755848957,-430.0,0.00018082,2]
[363536101,1748755848967,-430.0,0.00018082,2]
[363536103,1748755848976,-263.03,0.00018082,2]
[363536105,1748755848986,-1719.17,0.00018082,2]
[363536107,1748755848996,-1580.96639511,0.00018084,2]
[363536109,1748755849005,-1774.98813225,0.00018107,2]
[363536111,1748755849015,-1774.98813225,0.00018314,2]
[363536113,1748755849025,-430.0,0.00018356,2]
[363536115,1748755849035,-430.0,0.00018356,2]
[363536117,1748755849045,-527.78686087,0.00018356,2]
[363536119,1748755849054,-322.9,0.00018356,2]
[363536121,1748755849064,-430.0,0.00018356,2]
[363536123,1748755849073,-430.0,0.00018356,2]
[363536136,1748755849176,-430.0,0.00018356,2]
[363536138,1748755849199,-513.79,0.00018356,2]
[363536140,1748755849209,-618.38,0.00018356,2]
[363536142,1748755849219,-808.25,0.00018356,2]
[363536144,1748755849229,-430.0,0.00018356,2]
[363536146,1748755849238,-430.0,0.00018356,2]
[363536148,1748755849248,-430.0,0.00018356,2]
[363536150,1748755849257,-1548.34,0.00018356,2]
[363536152,1748755849268,-430.0,0.00018356,2]
[363536154,1748755849278,-558.89,0.00018356,2]
[363536156,1748755849288,-603.51,0.00018356,2]
[363536158,1748755849298,-430.0,0.00018356,2]
[363536160,1748755849307,-430.0,0.00018356,2]
[363536161,1748755849317,-430.0,0.00018356,2]
[363536164,1748755849331,-430.0,0.00018356,2]
[363536166,1748755849342,-430.0,0.00018356,2]
[363536168,1748755849352,-430.0,0.00018356,2]
[363536169,1748755849361,-430.0,0.00018356,2]
[363536171,1748755849373,-430.0,0.00018356,2]
[363536174,1748755849383,-632.5,0.00018356,2]
[363536176,1748755849394,-430.0,0.00018356,2]
[363536178,1748755849407,-430.0,0.00018356,2]
[363536180,1748755849419,-430.0,0.00018356,2]
[363536182,1748755849429,-430.0,0.00018356,2]
[363536184,1748755849439,-791.86,0.00018356,2]
[363536186,1748755849449,-430.0,0.00018356,2]
[363536188,1748755849459,-430.0,0.00018356,2]
[363536190,1748755849468,-1318.97,0.00018356,2]
[363536192,1748755849478,-462.49,0.00018356,2]
[363536194,1748755849488,-602.74,0.00018356,2]
[363536196,1748755849499,-430.0,0.00018356,2]
[363536198,1748755849508,-430.0,0.00018356,2]
[363536200,1748755849518,-430.0,0.00018356,2]
[363536202,1748755849528,-1752.54,0.00018356,2]
[363536204,1748755849538,-430.0,0.00018356,2]
[363536206,1748755849548,-1048.15,0.00018356,2]
[363536208,1748755849558,-717.96,0.00018356,2]
[363536210,1748755849568,-430.0,0.00018356,2]
[363536211,1748755849578,-430.0,0.00018356,2]
[363536213,1748755849588,-430.0,0.00018356,2]
[363536216,1748755849598,-1719.17,0.00018356,2]
[363536217,1748755849608,-255.30151772,0.00018493,2]
[363536219,1748755849617,-1774.98813225,0.00018521,2]
[363536221,1748755849627,-303.598416,0.0001859,2]
[363536223,1748755849637,-303.598416,0.0001859,2]
[363536225,1748755849647,-1713.465921,0.0001859,2]
[363536228,1748755849657,-1713.465921,0.0001859,2]
[363536229,1748755849666,-557.60716752,0.0001863,2]
[363536231,1748755849675,-430.0,0.0001863,2]
[363536234,1748755849685,-151.0,0.0001863,2]
[363536235,1748755849695,-430.0,0.0001863,2]
[363536237,1748755849705,-430.0,0.0001863,2]
[363536239,1748755849715,-513.79,0.0001863,2]
[363536241,1748755849725,-618.38,0.0001863,2]
[363536243,1748755849734,-808.25,0.0001863,2]
[363536245,1748755849743,-430.0,0.0001863,2]
[363536247,1748755849753,-430.0,0.0001863,2]
[363536249,1748755849763,-430.0,0.0001863,2]
[363536251,1748755849773,-1548.34,0.0001863,2]
[363536253,1748755849785,-430.0,0.0001863,2]
[363536255,1748755849795,-603.51,0.0001863,2]
[363536257,1748755849805,-430.0,0.0001863,2]
[363536259,1748755849814,-430.0,0.0001863,2]
[363536261,1748755849824,-430.0,0.0001863,2]
[363536263,1748755849834,-398.03672369,0.0001863,2]
[363536265,1748755849844,-430.0,0.0001863,2]
[363536267,1748755849854,-430.0,0.0001863,2]
[363536269,1748755849864,-430.0,0.0001863,2]
[363536271,1748755849873,-315.23,0.0001863,2]
[363536273,1748755849883,-632.5,0.0001863,2]
[363536275,1748755849893,-430.0,0.0001863,2]
[363536277,1748755849902,-243.45434865,0.0001863,2]
[363536279,1748755849912,-444.37,0.0001863,2]
[363536281,1748755849922,-430.0,0.0001863,2]
[363536282,1748755849931,-791.86,0.0001863,2]
[363536284,1748755849943,-430.0,0.0001863,2]
[363536286,1748755849952,-430.0,0.0001863,2]
[363536288,1748755849962,-1318.97,0.0001863,2]
[363536290,1748755849971,-462.49,0.0001863,2]
[363536292,1748755849981,-602.74,0.0001863,2]
[363536294,1748755849990,-430.0,0.0001863,2]
[363536296,1748755850000,-430.0,0.0001863,2]
[363536298,1748755850009,-430.0,0.0001863,2]
[363536300,1748755850018,-1752.54,0.0001863,2]
[363536302,1748755850028,-430.0,0.0001863,2]
[363536304,1748755850038,-1048.15,0.0001863,2]
[363536306,1748755850047,-717.96,0.0001863,2]
[363536308,1748755850057,-430.0,0.0001863,2]
[363536309,1748755850067,-430.0,0.0001863,2]
[363536310,1748755850077,-430.0,0.0001863,2]
[363536311,1748755850086,-1719.17,0.0001863,2]
[363536312,1748755850096,-1774.98813225,0.00018728,2]
[363536313,1748755850106,-1873.044526,0.000189,2]
[363536314,1748755850116,-430.0,0.00018904,2]
[363536315,1748755850125,-280.67654031,0.00018904,2]
[363536316,1748755850135,-513.79,0.00018904,2]
[363536317,1748755850144,-618.38,0.00018904,2]
[363536318,1748755850154,-808.25,0.00018904,2]
[363536319,1748755850164,-393.97,0.00018904,2]
[363536320,1748755850174,-430.0,0.00018904,2]
[363536321,1748755850183,-430.0,0.00018904,2]
[363536322,1748755850193,-1548.34,0.00018904,2]
[363536323,1748755850204,-430.0,0.00018904,2]
[363536324,1748755850214,-603.51,0.00018904,2]
[363536325,1748755850224,-430.0,0.00018904,2]
[363536326,1748755850233,-430.0,0.00018904,2]
[363536327,1748755850244,-430.0,0.00018904,2]
[363536328,1748755850254,-430.0,0.00018904,2]
[363536329,1748755850264,-195.76,0.00018904,2]
[363536330,1748755850274,-430.0,0.00018904,2]
[363536332,1748755850284,-632.5,0.00018904,2]
[363536333,1748755850294,-394.8436684,0.00018904,2]
[363536335,1748755850304,-430.0,0.00018904,2]
[363536337,1748755850314,-791.86,0.00018904,2]
[363536339,1748755850325,-430.0,0.00018904,2]
[363536341,1748755850339,-430.0,0.00018904,2]
[363536343,1748755850349,-1318.97,0.00018904,2]
[363536345,1748755850358,-462.49,0.00018904,2]
[363536348,1748755850369,-602.74,0.00018904,2]
[363536349,1748755850380,-430.0,0.00018904,2]
[363536351,1748755850391,-430.0,0.00018904,2]
[363536354,1748755850400,-430.0,0.00018904,2]
[363536356,1748755850412,-1752.54,0.00018904,2]
[363536358,1748755850422,-430.0,0.00018904,2]
[363536360,1748755850432,-1048.15,0.00018904,2]
[363536362,1748755850442,-717.96,0.00018904,2]
[363536364,1748755850451,-430.0,0.00018904,2]
[363536366,1748755850461,-430.0,0.00018904,2]
[363536368,1748755850473,-261.96,0.00018904,2]
[363536370,1748755850484,-1719.17,0.00018904,2]
[363536372,1748755850494,-300.0,0.00019016,2]
[363536374,1748755850503,-300.0,0.00019016,2]
[363536376,1748755850513,-300.0,0.00019016,2]
[363536378,1748755850522,-300.0,0.00019016,2]
[363536380,1748755850532,-300.0,0.00019016,2]
[363536382,1748755850541,-300.0,0.00019016,2]
[363536384,1748755850551,-207.4,0.00019016,2]
[363536386,1748755850561,-300.0,0.00019016,2]
[363536388,1748755850570,-300.0,0.00019016,2]
[363536390,1748755850579,-300.0,0.00019016,2]
[363536392,1748755850588,-300.0,0.00019016,2]
[363536394,1748755850598,-300.0,0.00019016,2]
[363536396,1748755850608,-300.0,0.00019016,2]
[363536398,1748755850619,-300.0,0.00019016,2]
[363536400,1748755850628,-300.0,0.00019016,2]
[363536402,1748755850638,-300.0,0.00019016,2]
[363536404,1748755850647,-397.6958,0.00019016,2]
[363536406,1748755850657,-397.6958,0.00019016,2]
[363536408,1748755850667,-647.94,0.00019039,2]
[363536410,1748755850676,-500.0,0.00019164,2]
[363536412,1748755850685,-151.0,0.00019178,2]
[363536414,1748755850695,-500.0,0.00019178,2]
[363536416,1748755850704,-500.0,0.00019178,2]
[363536417,1748755850714,-500.0,0.00019178,2]
[363536419,1748755850723,-500.0,0.00019178,2]
[363536421,1748755850733,-280.16546729,0.00019178,2]
[363536423,1748755850742,-500.0,0.00019178,2]
[363536425,1748755850752,-500.0,0.00019178,2]
[363536427,1748755850761,-500.0,0.00019178,2]
[363536429,1748755850770,-500.0,0.00019178,2]
[363536431,1748755850780,-500.0,0.00019178,2]
[363536433,1748755850789,-280.750953,0.00019178,2]
[363536435,1748755850799,-280.750953,0.00019178,2]
[363536437,1748755850808,-500.0,0.00019178,2]
[363536439,1748755850818,-279.35662884,0.00019178,2]
[363536441,1748755850827,-500.0,0.00019178,2]
[363536443,1748755850837,-600.0,0.00019178,2]
[363536445,1748755850846,-236.34,0.00019178,2]
[363536447,1748755850856,-151.0,0.00019178,2]
[363536449,1748755850865,-151.0,0.00019178,2]
[363536451,1748755850875,-513.79,0.00019178,2]
[363536453,1748755850885,-618.38,0.00019178,2]
[363536455,1748755850895,-808.25,0.00019178,2]
[363536457,1748755850904,-430.0,0.00019178,2]
[363536459,1748755850914,-430.0,0.00019178,2]
[363536461,1748755850924,-1548.34,0.00019178,2]
[363536463,1748755850934,-464.83,0.00019178,2]
[363536465,1748755850944,-151.939034,0.00019178,2]
[363536467,1748755850953,-603.51,0.00019178,2]
[363536469,1748755850963,-383.05,0.00019178,2]
[363536471,1748755850973,-430.0,0.00019178,2]
[363536473,1748755850982,-430.0,0.00019178,2]
[363536475,1748755850991,-430.0,0.00019178,2]
[363536477,1748755851001,-489.53,0.00019178,2]
[363536479,1748755851011,-632.5,0.00019178,2]
[363536481,1748755851021,-430.0,0.00019178,2]
[363536483,1748755851030,-791.86,0.00019178,2]
[363536485,1748755851040,-430.0,0.00019178,2]
[363536487,1748755851049,-430.0,0.00019178,2]
[363536489,1748755851059,-1318.97,0.00019178,2]
[363536491,1748755851068,-462.49,0.00019178,2]
[363536493,1748755851078,-602.74,0.00019178,2]
[363536495,1748755851088,-430.0,0.00019178,2]
[363536497,1748755851098,-430.0,0.00019178,2]
[363536499,1748755851107,-1752.54,0.00019178,2]
[363536501,1748755851116,-430.0,0.00019178,2]
[363536503,1748755851126,-1048.15,0.00019178,2]
[363536505,1748755851136,-717.96,0.00019178,2]
[363536507,1748755851146,-578.5,0.00019178,2]
[363536509,1748755851156,-258.18886446,0.00019178,2]
[363536511,1748755851167,-1719.17,0.00019178,2]
[363536513,1748755851176,-151.0,0.00019178,2]
[363536515,1748755851186,-185.142292,0.00019178,2]
[363536517,1748755851195,-156.587,0.00019233,2]
[363536519,1748755851205,-162.380719,0.00019288,2]
[363536521,1748755851214,-8439.75533364,0.00019329,2]
[363536523,1748755851223,-168.3888056,0.00019343,2]
[363536525,1748755851233,-174.61919141,0.00019398,2]
[363536527,1748755851243,-513.79,0.00019452,2]
[363536529,1748755851253,-618.38,0.00019452,2]
[363536531,1748755851263,-808.25,0.00019452,2]
[363536533,1748755851273,-430.0,0.00019452,2]
[363536535,1748755851282,-430.0,0.00019452,2]
[363536537,1748755851292,-1548.34,0.00019452,2]
[363536539,1748755851301,-603.51,0.00019452,2]
[363536541,1748755851311,-430.0,0.00019452,2]
[363536543,1748755851321,-430.0,0.00019452,2]
[363536545,1748755851333,-415.98,0.00019452,2]
[363536547,1748755851345,-632.5,0.00019452,2]
[363536549,1748755851356,-430.0,0.00019452,2]
[363536551,1748755851366,-791.86,0.00019452,2]
[363536553,1748755851377,-430.0,0.00019452,2]
[363536555,1748755851387,-525.69,0.00019452,2]
[363536557,1748755851396,-1318.97,0.00019452,2]
[363536559,1748755851406,-462.49,0.00019452,2]
[363536561,1748755851417,-602.74,0.00019452,2]
[363536563,1748755851427,-411.46,0.00019452,2]
[363536565,1748755851436,-430.0,0.00019452,2]
[363536567,1748755851446,-1752.54,0.00019452,2]
[363536569,1748755851455,-430.0,0.00019452,2]
[363536571,1748755851468,-1048.15,0.00019452,2]
[363536573,1748755851478,-717.96,0.00019452,2]
[363536575,1748755851488,-1719.17,0.00019452,2]
[363536577,1748755851497,-166.65485504,0.00019453,2]
[363536579,1748755851507,-305.0,0.000195,2]
[363536594,1748755851636,-623.216,0.00019556,2]
[363536596,1748755851646,-1580.96639511,0.00019556,2]
[363536598,1748755851655,-255.30151772,0.00019571,2]
[363536600,1748755851664,-504.0,0.00019608,2]
[363536602,1748755851674,-270.0,0.00019615,2]
[363536604,1748755851684,-513.79,0.00019726,2]
[363536606,1748755851693,-618.38,0.00019726,2]
[363536608,1748755851703,-808.25,0.00019726,2]
[363536610,1748755851712,-430.0,0.00019726,2]
[363536611,1748755851721,-430.0,0.00019726,2]
[363536613,1748755851731,-1548.34,0.00019726,2]
[363536615,1748755851741,-603.51,0.00019726,2]
[363536618,1748755851750,-430.0,0.00019726,2]
[363536620,1748755851760,-430.0,0.00019726,2]
[363536622,1748755851770,-632.5,0.00019726,2]
[363536624,1748755851779,-430.0,0.00019726,2]
[363536625,1748755851791,-791.86,0.00019726,2]
[363536627,1748755851801,-430.0,0.00019726,2]
[363536629,1748755851810,-1318.97,0.00019726,2]
[363536632,1748755851820,-462.49,0.00019726,2]
[363536634,1748755851830,-602.74,0.00019726,2]
[363536636,1748755851839,-430.0,0.00019726,2]
[363536638,1748755851849,-1752.54,0.00019726,2]
[363536640,1748755851859,-430.0,0.00019726,2]
[363536642,1748755851868,-717.96,0.00019726,2]
[363536644,1748755851877,-1048.15,0.00019726,2]
[363536646,1748755851887,-1719.17,0.00019726,2]
[363536648,1748755851896,-2172.0,0.0001981,2]
[363536650,1748755851905,-163.913267,0.00019843,2]
[363536652,1748755851916,-163.913267,0.00019843,2]
[363536654,1748755851926,-500.0,0.00019877,2]
[363536655,1748755851936,-500.0,0.00019933,2]
[363536657,1748755851945,-152.48778702,0.00019986,2]
[363536660,1748755851955,-232.650828,0.0002,2]
[363536662,1748755851965,-232.650828,0.0002,2]
[363536663,1748755851976,-151.0,0.0002,2]
[363536666,1748755851986,-513.79,0.0002,2]
[363536668,1748755851996,-618.38,0.0002,2]
[363536669,1748755852006,-808.25,0.0002,2]
[363536672,1748755852015,-430.0,0.0002,2]
[363536674,1748755852025,-430.0,0.0002,2]
[363536676,1748755852036,-1548.34,0.0002,2]
[363536678,1748755852045,-603.51,0.0002,2]
[363536680,1748755852054,-430.0,0.0002,2]
[363536682,1748755852064,-430.0,0.0002,2]
[363536684,1748755852074,-151.0,0.0002,2]
[363536686,1748755852086,-151.0,0.0002,2]
[363536688,1748755852096,-632.5,0.0002,2]
[363536690,1748755852106,-151.0,0.0002,2]
[363536692,1748755852115,-151.0,0.0002,2]
[363536694,1748755852124,-525.70323822,0.0002,2]
[363536696,1748755852134,-791.86,0.0002,2]
[363536698,1748755852143,-430.0,0.0002,2]
[363536700,1748755852154,-1318.97,0.0002,2]
[363536702,1748755852163,-462.49,0.0002,2]
[363536704,1748755852173,-602.74,0.0002,2]
[363536706,1748755852182,-503.38431858,0.0002,2]
[363536708,1748755852192,-1752.54,0.0002,2]
[363536710,1748755852202,-430.0,0.0002,2]
[363536712,1748755852211,-717.96,0.0002,2]
[363536714,1748755852221,-1048.15,0.0002,2]
[363536716,1748755852230,-1719.17,0.0002,2]
[363536718,1748755852240,-151.0,0.00020187,2]
[363536720,1748755852249,-595.507744,0.00020187,2]
[363536722,1748755852259,-500.0,0.0002026,2]
[363536724,1748755852268,-513.79,0.00020273,2]
[363536726,1748755852278,-618.38,0.00020273,2]
[363536728,1748755852288,-808.25,0.00020273,2]
[363536730,1748755852297,-336.2,0.00020273,2]
[363536732,1748755852306,-430.0,0.00020273,2]
[363536734,1748755852316,-1548.34,0.00020273,2]
[363536736,1748755852325,-603.51,0.00020273,2]
[363536738,1748755852342,-430.0,0.00020273,2]
[363536740,1748755852352,-430.0,0.00020273,2]
[363536742,1748755852362,-632.5,0.00020273,2]
[363536744,1748755852372,-791.86,0.00020273,2]
[363536746,1748755852382,-430.0,0.00020273,2]
[363536748,1748755852392,-1318.97,0.00020273,2]
[363536750,1748755852401,-462.49,0.00020273,2]
[363536753,1748755852412,-602.74,0.00020273,2]
[363536755,1748755852422,-1752.54,0.00020273,2]
[363536757,1748755852432,-430.0,0.00020273,2]
[363536759,1748755852441,-717.96,0.00020273,2]
[363536761,1748755852451,-1048.15,0.00020273,2]
[363536762,1748755852460,-215.0738,0.00020385,2]
[363536764,1748755852470,-160.0,0.00020474,3]
[363536766,1748755852480,-948.7552678,0.00020481,2]
[363536769,1748755852490,-513.79,0.00020547,2]
[363536770,1748755852500,-618.38,0.00020547,2]
[363536773,1748755852510,-808.25,0.00020547,2]
[363536775,1748755852519,-430.0,0.00020547,2]
[363536777,1748755852529,-1548.34,0.00020547,2]
[363536779,1748755852540,-603.51,0.00020547,2]
[363536781,1748755852549,-430.0,0.00020547,2]
[363536783,1748755852559,-430.0,0.00020547,2]
[363536785,1748755852568,-632.5,0.00020547,2]
[363536787,1748755852577,-791.86,0.00020547,2]
[363536789,1748755852587,-150.86492391,0.00020547,2]
[363536791,1748755852597,-1318.97,0.00020547,2]
[363536792,1748755852607,-462.49,0.00020547,2]
[363536793,1748755852616,-602.74,0.00020547,2]
[363536794,1748755852626,-1752.54,0.00020547,2]
[363536795,1748755852635,-430.0,0.00020547,2]
[363536796,1748755852645,-717.96,0.00020547,2]
[363536797,1748755852654,-1048.15,0.00020547,2]
[363536798,1748755852664,-870.535164,0.00020582,3]
[363536801,1748755852674,-255.30151772,0.00020648,2]
[363536803,1748755852684,-612.72825677,0.00020762,2]
[363536805,1748755852693,-800.0,0.00020765,2]
[363536807,1748755852703,-153.0,0.00020767,2]
[363536809,1748755852713,-1295.87,0.0002077,2]
[363536811,1748755852722,-151.0,0.00020796,2]
[363536813,1748755852731,-151.0,0.00020796,2]
[363536815,1748755852742,-151.0,0.00020796,2]
[363536817,1748755852751,-151.0,0.00020796,2]
[363536819,1748755852760,-422.648393,0.00020796,2]
[363536821,1748755852770,-422.648393,0.00020796,2]
[363536823,1748755852779,-425.112552,0.00020796,2]
[363536825,1748755852789,-425.112552,0.00020796,2]
[363536827,1748755852798,-748.884815,0.00020796,2]
[363536829,1748755852807,-748.884815,0.00020796,2]
[363536831,1748755852817,-513.79,0.00020821,2]
[363536833,1748755852827,-618.38,0.00020821,2]
[363536835,1748755852837,-808.25,0.00020821,2]
[363536836,1748755852846,-430.0,0.00020821,2]
[363536838,1748755852855,-1548.34,0.00020821,2]
[363536841,1748755852866,-603.51,0.00020821,2]